lending/lending_fUSD_20251107
["ID","MTS","AMOUNT","RATE_DAILY","PERIOD"]
[393345719,1762497044507,-1543.67,0.00027671,30]
[393345720,1762497044517,-50223.83753897,0.00028,2]
[393345721,1762497044527,-160.0,0.00028,2]
[393345722,1762497044536,-4111.96,0.00028272,2]
[393345723,1762497044545,-816.54317716,0.00028277,2]
[393345724,1762497044555,-1000.0,0.00028684,2]
[393345725,1762497044564,-540.96167146,0.00028716,2]
[393345726,1762497044574,-13133.54834702,0.0002875,2]
[393345727,1762497044583,-157.45979605,0.00028783,110]
[393345728,1762497044592,-152.0,0.00028876,3]
[393345729,1762497044603,-16581.7065668,0.00028888,2]
[393345730,1762497044613,-1926.8076577,0.00029,2]
[393345731,1762497044623,-300.82617854,0.00029,2]
[393345732,1762497044632,-550.0,0.00029,2]
[393345733,1762497044642,-4111.96,0.00029062,2]
[393345734,1762497044651,-202.00275,0.00029098,2]
[393345735,1762497044660,-1102.92,0.000291,7]
[393345736,1762497044669,-12649.0,0.00029229,2]
[393345737,1762497044679,-178.05,0.00029432,30]
[393345738,1762497044688,-152.0,0.00029485,4]
[393345739,1762497044698,-10413.02,0.000296,7]
[393345740,1762497044707,-1000.0,0.00029721,2]
[393345741,1762497044717,-4111.96,0.00029852,2]
[393345742,1762497044726,-77863.3873496,0.000299,2]
[393345743,1762497044736,-2207.56,0.000299,2]
[393345744,1762497044746,-4067.1465,0.00029944,2]
[393345745,1762497044755,-3848.471,0.00029944,2]
[393345746,1762497044764,-234.10235612,0.0002999,2]
[393345747,1762497044774,-37761.83711109,0.0003,5]
[393345748,1762497044784,-96296.45285987,0.0003,2]
[393345749,1762497044794,-5646.23629699,0.0003,2]
[393345750,1762497044804,-19611.96262248,0.0003,2]
[393345751,1762497044814,-2000.0,0.0003,14]
[393345752,1762497044824,-1793.05761065,0.0003,2]
[393345753,1762497044833,-4212.2243655,0.0003,2]
[393345754,1762497044842,-400.0,0.0003,20]
[393345755,1762497044852,-606.29532245,0.0003,2]
[393345756,1762497044864,-50864.56442731,0.0003,2]
[393345757,1762497044874,-160.83416815,0.0003,2]
[393345758,1762497044884,-1000.0,0.00030043,2]
[393345759,1762497044893,-152.0,0.00030094,5]
[393345760,1762497044902,-308.00801652,0.0003013,2]
[393345761,1762497044912,-1058.91028585,0.0003013,2]
[393345762,1762497044921,-182.47354773,0.0003013,30]
[393345763,1762497044930,-13666.68894269,0.0003013,2]
[393345764,1762497044940,-304.57056437,0.0003013,5]
[393345765,1762497044948,-625.43963357,0.0003013,2]
[393345766,1762497044958,-199.02899561,0.0003013,2]
[393345767,1762497044968,-1207.93903954,0.0003013,2]
[393345768,1762497044977,-7628.68334134,0.0003013,2]
[393345769,1762497044986,-162.54223701,0.0003013,20]
[393345770,1762497044995,-1012.29679257,0.0003013,7]
[393345771,1762497045005,-175.48706705,0.00030137,120]
[393345772,1762497045014,-425.91,0.000302,30]
[393345773,1762497045023,-500.0,0.00030223,2]
[393345774,1762497045033,-540.96167146,0.00030408,15]
[393345775,1762497045042,-4111.96,0.00030642,2]
[393345776,1762497045052,-152.0,0.00030703,6]
[393345777,1762497045061,-596.318,0.00030752,2]
[393345778,1762497045070,-1316.0,0.00030752,2]
[393345779,1762497045080,-614.508,0.00030752,2]
[393345780,1762497045089,-1000.0,0.00030758,2]
[393345781,1762497045098,-2576.22793422,0.0003084,2]
[393345782,1762497045109,-150.0,0.00030888,2]
[393345783,1762497045119,-77928.82074358,0.0003095,2]
[393345784,1762497045129,-79741.70509726,0.00031,2]
[393345785,1762497045138,-1102.92,0.00031,7]
[393345786,1762497045148,-600.0,0.00031,2]
[393345787,1762497045158,-1596.0,0.00031052,2]
[393345788,1762497045167,-820.0,0.00031052,2]
[393345789,1762497045176,-812.0,0.00031052,2]
[393345790,1762497045185,-1273.0,0.00031052,2]
[393345791,1762497045195,-1188.0,0.00031052,2]
[393345793,1762497045204,-905.0,0.00031052,2]
[393345795,1762497045214,-159.918,0.00031052,2]
[393345796,1762497045224,-559.0,0.00031052,2]
[393345797,1762497045234,-3424.0,0.00031052,2]
[393345798,1762497045243,-152.0,0.00031312,7]
[393345799,1762497045252,-758.70770392,0.0003143,4]
[393345800,1762497045262,-3305.31337429,0.0003145,2]
[393345801,1762497045273,-200.0,0.00031479,2]
[393345802,1762497045283,-194.73229467,0.000315,2]
[393345803,1762497045292,-150.0,0.000315,2]
[393345804,1762497045301,-160.82227907,0.000315,120]
[393345805,1762497045312,-253.66552311,0.000315,2]
[393345806,1762497045322,-816.54317716,0.00031736,2]
[393345807,1762497045331,-2040.549,0.00031778,30]
[393345808,1762497045340,-151.13490729,0.00031778,30]
[393345809,1762497045354,-1000.0,0.00031794,2]
[393345810,1762497045364,-178.05,0.0003184,30]
[393345811,1762497045373,-152.0,0.00031921,8]
[393345812,1762497045382,-250.0,0.00031948,2]
[393345813,1762497045391,-1000.0,0.00032,15]
[393345814,1762497045400,-1000.0,0.00032,15]
[393345815,1762497045410,-1000.0,0.00032,13]
[393345816,1762497045419,-1000.0,0.00032,13]
[393345817,1762497045428,-875.0,0.00032,17]
[393345818,1762497045437,-1000.0,0.00032,12]
[393345819,1762497045446,-1000.0,0.00032,12]
[393345820,1762497045456,-1000.0,0.00032,12]
[393345821,1762497045464,-1000.0,0.00032,12]
[393345822,1762497045474,-474.0,0.00032,12]
[393345823,1762497045483,-1000.0,0.00032,5]
[393345824,1762497045492,-10413.02,0.00032,7]
[393345825,1762497045501,-2207.56,0.00032,2]
[393345826,1762497045511,-1011.33361857,0.00032,7]
[393345827,1762497045520,-173.854535,0.0003209,31]
[393345828,1762497045564,-209.475628,0.0003209,31]
[393345829,1762497045573,-151.0,0.0003209,31]
[393345830,1762497045582,-151.0,0.0003209,31]
[393345831,1762497045591,-151.0,0.0003209,31]
[393345832,1762497045600,-151.0,0.0003209,31]
[393345833,1762497045611,-151.0,0.0003209,31]
[393345834,1762497045620,-151.0,0.0003209,31]
[393345835,1762497045629,-151.0,0.0003209,31]
[393345836,1762497045639,-151.0,0.0003209,31]
[393345837,1762497045649,-151.0,0.0003209,31]
[393345838,1762497045658,-3785.246069,0.0003209,31]
[393345839,1762497045668,-3785.246069,0.0003209,31]
[393345840,1762497045677,-151.0,0.0003209,31]
[393345841,1762497045686,-3785.246069,0.0003209,31]
[393345842,1762497045696,-3785.246069,0.0003209,31]
[393345843,1762497045705,-151.0,0.0003209,28]
[393345844,1762497045716,-156.582746,0.0003209,31]
[393345845,1762497045725,-151.0,0.0003209,31]
[393345847,1762497045735,-341.900548,0.0003209,31]
[393345849,1762497045744,-341.900548,0.0003209,31]
[393345850,1762497045754,-341.900548,0.0003209,31]
[393345851,1762497045763,-153.823368,0.0003209,31]
[393345852,1762497045773,-341.900548,0.0003209,31]
[393345853,1762497045782,-518.642083,0.0003209,31]
[393345854,1762497045791,-151.0,0.0003209,31]
[393345855,1762497045800,-518.642083,0.0003209,31]
[393345856,1762497045809,-151.0,0.0003209,31]
[393345857,1762497045818,-518.642083,0.0003209,31]
[393345858,1762497045828,-151.0,0.0003209,31]
[393345859,1762497045838,-518.642083,0.0003209,31]
[393345860,1762497045847,-294.379421,0.0003209,31]
[393345861,1762497045856,-151.0,0.0003209,31]
[393345862,1762497045865,-33266.2593,0.0003209,2]
[393345863,1762497045875,-7371.2255,0.0003209,2]
[393345864,1762497045884,-1000.0,0.0003209,2]
[393345865,1762497045893,-5000.0,0.000321,5]
[393345866,1762497045903,-9991.1379,0.000321,2]
[393345867,1762497045912,-540.96167146,0.000321,15]
[393345868,1762497045922,-17709.0,0.00032152,3]
[393345869,1762497045931,-500.0,0.00032173,5]
[393345870,1762497045940,-500.0,0.00032179,2]
[393345871,1762497045950,-6805.44644517,0.00032189,4]
[393345872,1762497045958,-515.63484931,0.00032189,120]
[393345873,1762497045967,-286.66966762,0.00032189,2]
[393345874,1762497045976,-151.0,0.0003219,31]
[393345875,1762497045987,-151.0,0.0003219,31]
[393345876,1762497045997,-151.0,0.0003219,31]
[393345877,1762497046006,-1577.976357,0.0003219,31]
[393345878,1762497046017,-264.128733,0.0003219,31]
[393345879,1762497046027,-1577.976357,0.0003219,31]
[393345880,1762497046036,-264.128733,0.0003219,31]
[393345881,1762497046046,-1577.976357,0.0003219,31]
[393345882,1762497046055,-264.128733,0.0003219,31]
[393345883,1762497046064,-1577.976357,0.0003219,31]
[393345884,1762497046074,-264.128733,0.0003219,31]
[393345885,1762497046082,-151.0,0.0003219,31]
[393345886,1762497046091,-151.0,0.0003219,31]
[393345887,1762497046101,-151.0,0.0003219,31]
[393345888,1762497046110,-151.0,0.0003219,31]
[393345889,1762497046119,-151.0,0.0003219,31]
[393345890,1762497046129,-325.190081,0.0003219,30]
[393345891,1762497046138,-187.739093,0.0003219,31]
[393345892,1762497046147,-325.190081,0.0003219,30]
[393345893,1762497046156,-325.190081,0.0003219,30]
[393345894,1762497046166,-325.190081,0.0003219,30]
[393345895,1762497046175,-151.0,0.0003219,31]
[393345896,1762497046184,-1000.0,0.0003219,120]
[393345897,1762497046193,-500.0,0.00032199,7]
[393345898,1762497046202,-500.0,0.00032199,7]
[393345899,1762497046211,-500.0,0.00032199,120]
[393345900,1762497046220,-500.0,0.00032199,120]
[393345901,1762497046229,-500.0,0.00032199,120]
[393345902,1762497046238,-500.0,0.00032199,120]
[393345903,1762497046246,-500.0,0.00032199,120]
[393345904,1762497046255,-500.0,0.00032199,120]
[393345905,1762497046265,-500.0,0.00032199,120]
[393345906,1762497046275,-500.0,0.00032199,120]
[393345907,1762497046284,-420000.0,0.000322,2]
[393345908,1762497046293,-1000.0,0.000322,2]
[393345909,1762497046303,-500.0,0.0003225,120]
[393345910,1762497046314,-500.0,0.0003225,120]
[393345911,1762497046324,-500.0,0.0003225,120]
[393345912,1762497046337,-500.0,0.0003225,120]
[393345913,1762497046346,-500.0,0.0003225,120]
[393345914,1762497046358,-500.0,0.0003225,120]
[393345915,1762497046367,-500.0,0.0003225,120]
[393345916,1762497046376,-500.0,0.0003225,120]
[393345917,1762497046385,-500.0,0.0003225,120]
[393345918,1762497046395,-500.0,0.0003225,120]
[393345919,1762497046404,-500.0,0.0003225,120]
[393345920,1762497046415,-500.0,0.0003225,120]
[393345921,1762497046426,-500.0,0.0003225,120]
[393345922,1762497046435,-500.0,0.0003225,120]
[393345923,1762497046445,-500.0,0.0003225,120]
[393345924,1762497046454,-500.0,0.0003225,120]
[393345925,1762497046462,-500.0,0.0003225,120]
[393345926,1762497046471,-500.0,0.0003225,120]
[393345927,1762497046480,-213.13717171,0.0003225,120]
[393345928,1762497046569,151.49723999,0.00038755,120]
[393345932,1762497046696,-512.88129676,0.00015329,2]
[393345935,1762497046706,-614.29932962,0.00019068,2]
[393345937,1762497046716,-286.86282829,0.0003225,120]
[393345938,1762497046725,-500.0,0.0003225,120]
[393345940,1762497046734,-500.0,0.0003225,120]
[393345943,1762497046744,-500.0,0.0003225,120]
[393345945,1762497046753,-426.35369542,0.0003225,120]
[393345947,1762497046765,-73.64630458,0.0003225,120]
[393345949,1762497046774,-500.0,0.0003225,120]
[393345951,1762497046783,-425.91,0.000323,30]
[393345953,1762497046792,-881.40911335,0.000323,2]
[393345955,1762497046802,-500.0,0.00032436,5]
[393345957,1762497046811,-165.78458207,0.00032436,5]
[393345959,1762497046822,-411.02532013,0.00032436,5]
[393345960,1762497046831,-39.47967987,0.00032502,2]
[393345961,1762497047009,-1167.06956897,0.00032502,2]
[393345962,1762497047047,-63.67637982,0.00032502,2]
[393345963,1762497047066,-1153.7255486,0.00031049,2]
[393345964,1762497051663,500.0,0.00014999,2]
[393345965,1762497068364,500.0,0.00014999,2]
[393345966,1762497087074,665.42424962,0.00038755,30]
[393345967,1762497103613,453.0,0.0003013,120]
[393345968,1762497154698,500.0,0.00014999,2]
[393345969,1762497154973,535.95384963,0.00014999,2]
[393345970,1762497167698,500.0,0.00014999,2]
[393345971,1762497167939,500.0,0.00014999,2]
[393345972,1762497168192,500.0,0.00014999,2]
[393345973,1762497180875,532.10925199,0.00014999,2]
[393345978,1762497252962,1000.0,0.00038755,30]
[393345979,1762497273395,500.0,0.00014999,2]
[393345980,1762497273876,500.0,0.00014999,2]
[393345981,1762497274115,500.0,0.00014999,2]
[393345982,1762497274368,500.0,0.00014999,2]
[393345983,1762497274610,200.0,0.00014999,2]
[393345984,1762497285951,150.0,0.00015,2]
[393345985,1762497400093,1000.0,0.00038819,30]
[393345986,1762497403965,1000.0,0.00038819,30]
[393345988,1762497406690,1000.0,0.00038819,30]
[393345989,1762497408154,1000.0,0.00038819,30]
[393345990,1762497417517,1000.0,0.00038819,30]
[393345991,1762497418505,1000.0,0.00038819,30]
[393345992,1762497419878,1000.0,0.00038819,30]
[393345993,1762497420787,1000.0,0.00038819,30]
[393345994,1762497421642,1000.0,0.00038819,30]
[393345995,1762497488240,500.0,0.00014999,2]
[393345997,1762497542049,1000.0,0.00038819,30]
[393345998,1762497543095,1000.0,0.00038819,30]
[393345999,1762497544144,1000.0,0.00038819,30]
[393346000,1762497545169,1000.0,0.00038819,30]
[393346001,1762497546151,1000.0,0.00038819,30]
[393346002,1762497547273,1000.0,0.00038819,30]
[393346003,1762497548245,1000.0,0.00038819,30]
[393346004,1762497549208,1000.0,0.00038819,30]
[393346005,1762497550247,1000.0,0.00038819,30]
[393346006,1762497551309,1000.0,0.00038819,30]
[393346007,1762497559546,500.0,0.00014999,2]
[393346008,1762497559802,500.0,0.00014999,2]
[393346009,1762497560037,500.0,0.00014999,2]
[393346010,1762497560270,500.0,0.00014999,2]
[393346011,1762497560499,500.0,0.00014999,2]
[393346012,1762497560761,500.0,0.00014999,2]
[393346013,1762497562373,500.0,0.00014999,2]
[393346014,1762497584283,587.39430827,0.00014999,2]
[393346017,1762497667598,500.0,0.00014999,2]
[393346018,1762497667862,500.0,0.00014999,2]
[393346019,1762497668100,500.0,0.00014999,2]
[393346020,1762497668364,530.66970019,0.00014999,2]
[393346021,1762497678945,155.1,0.00038702,30]
[393346022,1762497692330,500.0,0.00014999,2]
[393346023,1762497692728,500.0,0.00014999,2]
[393346024,1762497692817,640.1517392,0.00014999,2]
[393346025,1762497698620,1000.0,0.00038702,30]
[393346026,1762497699620,1000.0,0.00038702,30]
[393346027,1762497700498,1000.0,0.00038702,30]
[393346028,1762497701330,1000.0,0.00038702,30]
[393346029,1762497702157,1000.0,0.00038702,30]
[393346030,1762497703007,1000.0,0.00038702,30]
[393346031,1762497703798,1000.0,0.00038702,30]
[393346032,1762497704628,1000.0,0.00038702,30]
[393346033,1762497705447,1000.0,0.00038702,30]
[393346034,1762497706267,1000.0,0.00038702,30]
[393346035,1762497707091,1000.0,0.00038702,30]
[393346036,1762497707927,1000.0,0.00038702,30]
[393346037,1762497708755,1000.0,0.00038702,30]
[393346038,1762497709553,1000.0,0.00038702,30]
[393346039,1762497710396,1000.0,0.00038702,30]
[393346040,1762497711188,1000.0,0.00038702,30]
[393346041,1762497711987,1000.0,0.00038702,30]
[393346042,1762497712868,1000.0,0.00038702,30]
[393346043,1762497713754,1000.0,0.00038702,30]
[393346044,1762497714629,1000.0,0.00038702,30]
[393346046,1762497815307,200.0,0.00014878,2]
[393346047,1762497816163,200.0,0.00014879,2]
[393346049,1762498014279,956.41381449,0.00038704,120]
[393346050,1762498019589,5050.0,0.00038704,38]
[393346053,1762498041974,150.0,0.00023149,120]
[393346070,1762498232213,-150.0,0.000158,2]
[393346071,1762498232224,-250.0,0.00015836,2]
[393346072,1762498232233,-500.0,0.00015872,2]
[393346073,1762498232242,-250.0,0.00016198,2]
[393346074,1762498232251,-193.57,0.00016712,2]
[393346075,1762498232260,-206.26953728,0.000169,2]
[393346076,1762498232269,-2326.0,0.00016986,2]
[393346077,1762498232278,-773.21698856,0.00017,2]
[393346078,1762498232287,-250.0,0.0001738,2]
[393346079,1762498232296,-300.0,0.0001738,2]
[393346080,1762498232304,-1200.0,0.00017897,2]
[393346081,1762498232313,-983.0,0.00017898,2]
[393346082,1762498232323,-300.0,0.00017898,2]
[393346084,1762498232332,-299.99,0.00017899,4]
[393346086,1762498232341,-1719.72,0.00017899,2]
[393346088,1762498232350,-9999.99,0.00017899,2]
[393346089,1762498232359,-15194.54,0.00017899,2]
[393346090,1762498232368,-150.99,0.00017899,2]
[393346091,1762498232378,-999.99,0.00017899,2]
[393346092,1762498232387,-9999.99,0.00017899,2]
[393346093,1762498232396,-477.99034883,0.0001873,2]
[393346094,1762498232406,-500.0,0.0001912,2]
[393346095,1762498232415,-7789.24,0.00019339,2]
[393346096,1762498232424,-14294.88,0.00019339,2]
[393346097,1762498232433,-9999.99,0.00019339,2]
[393346098,1762498232442,-324.9487087,0.00019429,2]
[393346099,1762498232451,-500.0,0.00019429,2]
[393346101,1762498232461,-500.0,0.00019525,2]
[393346102,1762498232470,-1680.0,0.00019626,2]
[393346103,1762498232479,-525.88457215,0.00019668,2]
[393346104,1762498232487,-500.0,0.00019977,2]
[393346105,1762498232498,-500.0,0.00019998,2]
[393346106,1762498232507,-184.52724052,0.0002,2]
[393346107,1762498232516,-400.0,0.0002,2]
[393346108,1762498232525,-500.81946819,0.0002,2]
[393346109,1762498232534,-500.0,0.00020067,2]
[393346110,1762498232543,-638.23167784,0.00020073,2]
[393346111,1762498232552,-151.0,0.00020133,2]
[393346112,1762498232560,-151.0,0.00020133,2]
[393346113,1762498232569,-151.0,0.00020133,2]
[393346114,1762498232578,-151.0,0.00020133,2]
[393346115,1762498232587,-151.0,0.00020133,2]
[393346116,1762498232596,-151.0,0.00020133,2]
[393346117,1762498232605,-151.0,0.00020133,2]
[393346118,1762498232614,-151.0,0.00020133,2]
[393346119,1762498232622,-151.0,0.00020133,2]
[393346120,1762498232631,-151.0,0.00020133,2]
[393346121,1762498232640,-151.0,0.00020133,2]
[393346122,1762498232652,-151.0,0.00020133,2]
[393346123,1762498232662,-151.0,0.00020133,2]
[393346124,1762498232672,-151.0,0.00020133,2]
[393346125,1762498232681,-151.0,0.00020133,2]
[393346126,1762498232692,-151.0,0.00020133,2]
[393346127,1762498232703,-151.0,0.00020133,2]
[393346128,1762498232715,-151.0,0.00020133,2]
[393346129,1762498232725,-151.0,0.00020133,2]
[393346130,1762498232735,-151.0,0.00020133,2]
[393346131,1762498232744,-151.0,0.00020133,2]
[393346132,1762498232753,-151.0,0.00020133,2]
[393346133,1762498232762,-151.0,0.00020133,2]
[393346134,1762498232773,-151.0,0.00020133,2]
[393346135,1762498232784,-151.0,0.00020133,2]
[393346136,1762498232796,-151.0,0.00020133,2]
[393346137,1762498232808,-151.0,0.00020133,2]
[393346138,1762498232820,-151.0,0.00020133,2]
[393346139,1762498232830,-151.0,0.00020133,2]
[393346140,1762498232840,-151.0,0.00020133,2]
[393346141,1762498232851,-151.0,0.00020133,2]
[393346142,1762498232863,-151.0,0.00020133,2]
[393346143,1762498232875,-151.0,0.00020133,2]
[393346144,1762498232886,-151.0,0.00020133,2]
[393346145,1762498232897,-500.0,0.00020133,2]
[393346146,1762498232909,-150.0,0.00020133,2]
[393346147,1762498232922,-181.60516061,0.00020133,2]
[393346148,1762498232933,-500.0,0.00020133,2]
[393346149,1762498232946,-150.0,0.00020133,2]
[393346150,1762498232956,-150.0,0.00020133,2]
[393346151,1762498232966,-150.0,0.00020133,2]
[393346152,1762498232976,-150.0,0.00020133,2]
[393346153,1762498232987,-500.0,0.00020133,2]
[393346154,1762498232999,-500.0,0.0002027,2]
[393346155,1762498233011,-203.48893781,0.0002027,2]
[393346156,1762498233022,-500.0,0.0002027,2]
[393346157,1762498233034,-150.0,0.0002027,2]
[393346158,1762498233045,-150.80752017,0.0002027,2]
[393346159,1762498233057,-152.10989267,0.0002027,2]
[393346160,1762498233068,-150.0,0.0002027,2]
[393346161,1762498233080,-500.0,0.00020407,2]
[393346162,1762498233092,-500.0,0.00020407,2]
[393346163,1762498233103,-150.0,0.00020407,2]
[393346164,1762498233115,-150.0,0.00020407,2]
[393346165,1762498233128,-573.72728903,0.00020544,2]
[393346166,1762498233140,-500.0,0.00020544,2]
[393346167,1762498233151,-150.0,0.00020544,2]
[393346168,1762498233163,-150.0,0.00020544,2]
[393346169,1762498233175,-500.0,0.00020615,2]
[393346170,1762498233187,-573.00202241,0.00020681,2]
[393346171,1762498233198,-159.45484298,0.00020681,2]
[393346172,1762498233209,-250.08208835,0.00020681,2]
[393346173,1762498233222,-500.0,0.00021075,2]
[393346174,1762498233233,-2351.0,0.00021521,2]
[393346175,1762498233246,-287.69673721,0.00021918,2]
[393346176,1762498233258,-474.89,0.00022107,2]
[393346177,1762498233269,-150.0,0.00023149,2]
[393346178,1762498233280,-239.0,0.00023472,2]
[393346179,1762498233291,-190.67465062,0.00023502,2]
[393346180,1762498233513,-746.60641587,0.00023502,2]
[393346181,1762498233525,-3292.0,0.000236,2]
[393346182,1762498233535,-500.0,0.00023882,2]
[393346183,1762498233546,-5000.0,0.00024517,2]
[393346184,1762498233556,-500.0,0.0002475,2]
[393346185,1762498233567,-500.0,0.00024991,2]
[393346186,1762498233577,-1029.94,0.00025,2]
[393346187,1762498233587,-500.0,0.00025,2]
[393346188,1762498233597,-1852.42,0.00025048,2]
[393346189,1762498233607,-500.0,0.00025148,5]
[393346190,1762498233620,-150.0,0.00025148,5]
[393346191,1762498233631,-500.0,0.00025148,2]
[393346192,1762498233641,-150.0,0.00025148,5]
[393346193,1762498233654,-600.0,0.00025221,5]
[393346194,1762498233664,-500.0,0.00025285,5]
[393346195,1762498233675,-152.54084993,0.00025285,5]
[393346196,1762498233685,-500.0,0.00025285,2]
[393346197,1762498233697,-150.0,0.00025285,5]
[393346198,1762498233707,-1000.0,0.00025298,2]
[393346199,1762498233718,-254.60451121,0.00025422,5]
[393346200,1762498233730,-500.0,0.00025422,2]
[393346201,1762498233740,-131.37299051,0.00025422,5]
[393346202,1762498233752,-102.71330327,0.00025422,5]
[393346203,1762498233763,-1029.94,0.000255,2]
[393346204,1762498233773,-500.0,0.00025559,2]
[393346205,1762498233783,-600.0,0.0002565,5]
[393346206,1762498233794,-263.48,0.00025653,2]
[393346207,1762498233804,-500.0,0.00025696,2]
[393346208,1762498233815,-600.0,0.00025738,5]
[393346209,1762498233826,-632.44975263,0.0002574,5]
[393346210,1762498233836,-600.0,0.00025825,5]
[393346211,1762498233847,-500.0,0.00025833,2]
[393346212,1762498233857,-1500.0,0.00025846,2]
[393346213,1762498233867,-2578.75822692,0.0002588,2]
[393346214,1762498233881,-893.36000006,0.0002588,2]
[393346219,1762498240152,-500.0,0.00020133,2]
[393346220,1762498240163,-12.27802841,0.0002027,2]
[393346221,1762498240214,-487.72197159,0.0002027,2]
[393346222,1762498240225,-500.0,0.0002027,2]
[393346223,1762498240234,-500.0,0.00020407,2]
[393346224,1762498240243,-500.0,0.00020407,2]
[393346225,1762498240253,-500.0,0.00020544,2]
[393346226,1762498240263,-500.0,0.00020544,2]
[393346227,1762498240273,-500.0,0.00020681,2]
[393346228,1762498240283,-500.0,0.00020681,2]
[393346229,1762498240293,-150.0,0.00020681,2]
[393346230,1762498240302,-500.0,0.00020818,2]
[393346231,1762498240311,-500.0,0.00020818,2]
[393346232,1762498240320,-150.0,0.00020818,2]
[393346233,1762498240331,-606.64891745,0.00020955,2]
[393346234,1762498240340,-500.0,0.00020955,2]
[393346235,1762498240349,-150.0,0.00020955,2]
[393346236,1762498240358,-500.0,0.00021092,2]
[393346237,1762498240368,-208.1083224,0.00021092,2]
[393346238,1762498240378,-500.0,0.00021229,2]
[393346239,1762498240387,-500.0,0.00021366,2]
[393346240,1762498240396,-500.0,0.00021503,2]
[393346241,1762498240405,-480.76560016,0.0002164,2]
[393346242,1762498240415,-1136.88177302,0.0002588,2]
[393346243,1762498240424,-233.33506662,0.0002597,2]
[393346244,1762498240435,-162.36312912,0.00025975,2]
[393346245,1762498240444,-5283.01,0.00026057,2]
[393346247,1762498240453,-1000.0,0.00026224,2]
[393346249,1762498240463,-2000.0,0.00026394,2]
[393346250,1762498240472,-21311.58,0.0002665,2]
[393346251,1762498240482,-500.0,0.0002669,2]
[393346252,1762498240491,-2500.0,0.00026942,2]
[393346253,1762498240500,-263.48,0.00027079,2]
[393346254,1762498240513,-1500.0,0.00027397,16]
[393346255,1762498240523,-2808.85599281,0.0002749,5]
[393346256,1762498240532,-150.0,0.000275,2]
[393346257,1762498240541,-500.0,0.000275,2]
[393346258,1762498240551,-500.0,0.000275,2]
[393346259,1762498240560,-150.0,0.000275,2]
[393346260,1762498240570,-500.0,0.000275,2]
[393346261,1762498240580,-500.0,0.000275,2]
[393346262,1762498240590,-150.0,0.000275,2]
[393346263,1762498240600,-500.0,0.000275,2]
[393346264,1762498240610,-154.7243316,0.000275,2]
[393346265,1762498240620,-500.0,0.000275,2]
[393346266,1762498240630,-500.0,0.000275,2]
[393346267,1762498240639,-513.0,0.000275,2]
[393346268,1762498240649,-500.0,0.00027533,5]
[393346269,1762498240660,-2251.27783874,0.00027537,2]
[393346270,1762498240669,-150.0,0.00027637,2]
[393346271,1762498240679,-500.0,0.00027637,2]
[393346272,1762498240688,-500.0,0.00027637,2]
[393346273,1762498240698,-161.91063358,0.00027637,2]
[393346274,1762498240708,-500.0,0.00027637,2]
[393346275,1762498240718,-500.0,0.00027637,2]
[393346276,1762498240729,-206.79233266,0.00027637,2]
[393346277,1762498240738,-500.0,0.00027637,2]